Cogmind - Beta 14 @@@ ROGUE MODE // 2024.08.21 @ 23:00:18 Player: KillHour Result: Destroyed by 02-PV1(R) with Subdweller Machine Gun Performance ------------- Evolutions (0) 0 Regions Visited (2) 400 Robots Destroyed (26) 130 Value Destroyed (678) 678 Prototype IDs (0) 0 Alien Tech Used (0) 0 Bonus (0) 0 TOTAL SCORE: 1208 Bonus ------- None Cogmind --------- Core Integrity 0/250 Matter 300/300 Energy 248/250 System Corruption 0% Temperature Cool (1) Movement Walking (260) Ox2 Location -10/Subcaves Parts ------- > --- POWER (1) -------- Ion Engine > --- PROPULSION (2) --- Aluminum Leg > --- UTILITY (2) ------ Medium Storage Unit Sensor Array > --- WEAPON (2) ------- Light EM Pulse Cannon Light Cannon > --- INVENTORY (10) --- Ion Engine Visual Processing Unit Signal Interpreter Seismic Detector Transport Network Coupler Beam Rifle Light EM Pulse Cannon Grenade Launcher Mining Laser Peak State ------------ > --- POWER ------------ Light Ion Engine > --- PROPULSION ------- Aluminum Leg Aluminum Leg > --- UTILITY ---------- Small Storage Unit Seismic Detector > --- WEAPON ----------- Beam Rifle Light EM Pulse Cannon > --- INVENTORY -------- Light Ion Engine Light Treads Wheel Wheel Visual Processing Unit Signal Interpreter Terrain Scan Processor Medium Laser [Rating: 10] Favorites ----------- Power Light Ion Engine Engine Light Ion Engine Propulsion Aluminum Leg Treads Light Treads Leg Aluminum Leg Wheel Wheel Utility Sensor Array Device Sensor Array Storage Medium Storage Unit Weapon Light EM Pulse Cannon Energy Gun Medium Laser Energy Cannon Light EM Pulse Cannon Ballistic Cannon Light Cannon Build | -11 -10 -10 ------- Run | Yrd Mat Sub Slots Evolved . | . . . Power . | . . . Propulsion . | . . . Utility . | . . . Weapon . | . . . Parts Attached 27 | 9 18 . Power 4 | 1 3 . Engine 4 | 1 3 . Core . | . . . Reactor . | . . . Propulsion 10 | 4 6 . Treads 4 | 2 2 . Leg 4 | . 4 . Wheel 2 | 2 . . Hover . | . . . Flight . | . . . Utility 4 | 2 2 . Device 2 | 1 1 . Storage 2 | 1 1 . Processor . | . . . Hackware . | . . . Protection . | . . . Artifact . | . . . Weapon 9 | 2 7 . Energy Gun 6 | 2 4 . Energy Cannon 2 | . 2 . Ballistic Gun . | . . . Ballistic Cannon 1 | . 1 . Launcher . | . . . Special Weapon . | . . . Impact Weapon . | . . . Slashing Weapon . | . . . Piercing Weapon . | . . . Special Melee Weapon . | . . . Unidentified Prototypes . | . . . Parts Lost 6 | . 5 1 Power 1 | . 1 . Propulsion 3 | . 2 1 Utility . | . . . Weapon 2 | . 2 . Highest Loss Streak 4 | . 4 1 To Critical Strikes . | . . . Average Slot Usage (%) 98 | . 98 92 Engine 13 | . 13 14 Leg 23 | . 23 20 Wheel 3 | . 3 . Device 14 | . 14 14 Storage 14 | . 14 14 Energy Gun 9 | . 10 . Energy Cannon 11 | . 10 14 Ballistic Cannon 6 | . 6 14 Peak Build Rating 10 | 7 10 9 Average Rating 8 | 4 8 8 On Entrance 5 | . 7 9 Naked Turns . | . . . Heaviest Build 23 | 13 23 23 Greatest Support 40 | 40 40 20 Greatest Overweight (x) 2 | 1 1 2 Average Overweight (x) . | . . 1 Largest Inventory Capacity 10 | 8 10 10 Average Capacity 9 | 5 9 10 Most Carried 10 | 5 10 9 Average Carried 8 | 3 8 9 Final Capacity 10 | 8 10 10 Final Carried 9 | 5 9 9 Class Distribution -------------------- 87% | Mutant 12% | Scavenger-Mutant Dominant Class ---------------- Mutant | -10/Materials Mutant | -10/Subcaves Resources | -11 -10 -10 ----------- Run | Yrd Mat Sub Matter Collected 523 | 178 337 8 Remotely . | . . . Salvage Created 865 | 19 800 46 Parts 60 | 3 55 2 Haulers Intercepted 1 | . 1 . Recyclers Shooed . | . . . Parts Field Recycled . | . . . Retrieved Matter . | . . . Parts Self-Destructed . | . . . Prevented . | . . . Kills | -11 -10 -10 ------- Run | Yrd Mat Sub Combat Hostiles Destroyed 19 | . 18 1 Guns 10 | . 10 . Cannons 7 | . 6 1 AOE 2 | . 2 . Classes Destroyed 7 | 1 5 1 Worker 2 | . 2 . Tunneler 1 | 1 . . Hauler 1 | . 1 . Watcher 3 | . 3 . Swarmer 3 | . 3 . Grunt 15 | . 15 . Subdweller 1 | . . 1 Best Kill Streak 7 | 1 7 1 Combat Bots Only 7 | . 7 1 Max Kills in Single Turn 3 | 1 3 1 Gunslinging . | . . . Exploded 2 | . 2 . Melee . | . . . Uniques/NPCs Destroyed . | . . . Combat | -11 -10 -10 -------- Run | Yrd Mat Sub Hostile Shots Fired 101 | . 90 11 Missed 15 | . 14 1 Damage Taken 1202 | . 991 211 Core 264 | . 219 45 Absorbed by Shields . | . . . Core Remaining (%) 100 | 100 . . Volleys Fired 62 | 1 58 3 Largest 2 | 2 2 2 Hottest 112 | 100 112 91 Shots Fired 106 | 2 98 6 Gun 72 | 2 70 . Cannon 34 | . 28 6 Launcher . | . . . Special . | . . . Kinetic 8 | . 5 3 Thermal 72 | 2 70 . Explosive . | . . . Electromagnetic 26 | . 23 3 Robot Hit Streak 14 | 2 14 6 Robot Miss Streak 4 | . 4 1 Penetration Max . | . . . Secondary Targets 2 | . 2 . Max Gunslinging Chain 1 | . 1 . Shots Hit Robots 69 | 2 63 4 Core Hits 42 | 1 39 2 Critical Kills . | . . . Critical Parts Destroyed . | . . . Critical Strikes 5 | . 5 . Burn 5 | . 5 . Melee Attacks . | . . . Impact . | . . . Slashing . | . . . Piercing . | . . . Sneak Attacks . | . . . Combat Hostiles . | . . . Follow-up Attacks . | . . . Damage Inflicted 1230 | 24 1131 75 Guns 607 | 24 583 . Cannons 491 | . 416 75 Explosions 105 | . 105 . Melee . | . . . Ramming 27 | . 27 . Kinetic 87 | . 68 19 Thermal 712 | 24 688 . Explosive . | . . . Electromagnetic 404 | . 348 56 Impact . | . . . Slashing . | . . . Piercing . | . . . Highest Corruption . | . . . Average Corruption . | . . . Corruption Purged . | . . . Corruption Blocked . | . . . Overload Shots . | . . . Overflow Damage 16 | . 16 . Projectiles . | . . . Explosions 16 | . 16 . Melee . | . . . Knockbacks . | . . . Impact . | . . . Kinetic . | . . . Secondary . | . . . Self-Inflicted Damage 39 | . 39 . Shots 1 | . 1 . Rammed 3 | . 3 . Targets Rammed 7 | . 7 . Kicked 4 | . 4 . Crushed . | . . . Highest Temperature 518 | 39 518 . Average Temperature 157 | 24 159 . Received Heat Transfer 528 | . 510 18 Effects 12 | . 12 . Shutdowns 1 | . 1 . Energy Bleed 1 | . 1 . Interference 4 | . 4 . Matter Decay 1 | . 1 . Short Circuit 1 | . 1 . Damage (major) 4 | . 4 . Siege Activations . | . . . Robots Corrupted . | . . . Combat Hostiles . | . . . Parts Fried . | . . . Impact Corruptions . | . . . Robots Melted . | . . . Combat Hostiles . | . . . Parts Melted 5 | 1 4 . Heat Transferred 2162 | 74 2088 . Parts Sabotaged . | . . . Parts Stolen . | . . . Parts Stripped . | . . . Power Chain Reactions 1 | . 1 . Alert | -11 -10 -10 ------- Run | Yrd Mat Sub Peak Influence 256 | 5 256 . Initial 3 | . 3 . Average 86 | . 89 . Maximum Alert Level 1 | . 1 . Low Security (%) 84 | 100 84 . Level 1 15 | . 15 . Level 2 . | . . . Level 3 . | . . . Level 4 . | . . . Level 5 . | . . . High Security . | . . . Max Security . | . . . Squads Dispatched 5 | . 5 . Investigation 2 | . 2 . Extermination . | . . . Reinforcement 3 | . 3 . Assault . | . . . Garrison . | . . . Intercept . | . . . Searches Triggered . | . . . Construction Impeded . | . . . Haulers Reinforced . | . . . Active Scanning Responses . | . . . Cargo Convoy Interrupts . | . . . Stealth | -11 -10 -10 --------- Run | Yrd Mat Sub Distress Signals 1 | . 1 . Communications Jammed . | . . . Distress Signals . | . . . Times Spotted 30 | . 28 2 Peak Tracking Total 10 | . 10 1 Tactical Retreats 1 | . 1 . Traps | -11 -10 -10 ------- Run | Yrd Mat Sub Traps Triggered 2 | . 2 . Indirectly . | . . . Trap Hack Attempts . | . . . Triggered . | . . . Disarmed . | . . . Reprogrammed . | . . . Reused . | . . . Traps Extracted . | . . . Installed . | . . . Triggered . | . . . Machines | -11 -10 -10 ---------- Run | Yrd Mat Sub Machines Disabled . | . . . Max in Single Turn . | . . . Machines Repaired . | . . . Machines Dismantled . | . . . Machines Sabotaged . | . . . Overloaded Fab Kills . | . . . Hacking | -11 -10 -10 --------- Run | Yrd Mat Sub Machines Accessed 5 | . 5 . Terminals 4 | . 4 . Fabricators . | . . . Repair Stations . | . . . Recycling Units 1 | . 1 . Scanalyzers . | . . . Garrison Access . | . . . Total Hacks 13 | . 13 . Successful 7 | . 7 . Failed 6 | . 6 . Catastrophic 2 | . 2 . Database Lockouts . | . . . Manual 7 | . 7 . Terminals 9 | . 9 . Fabricators . | . . . Repair Stations . | . . . Recycling Units 4 | . 4 . Scanalyzers . | . . . Garrison Access . | . . . Terminal Hacks 2 | . 2 . Dispatch Records 1 | . 1 . Surveillance Status 1 | . 1 . Fabricator Hacks . | . . . Repair Station Hacks . | . . . Recycling Unit Hacks 2 | . 2 . Process 1 | . 1 . Report Inventory 1 | . 1 . Scanalyzer . | . . . Garrison Access Hacks . | . . . Unauthorized Hacks 1 | . 1 . Terminals 1 | . 1 . Botnet 1 | . 1 . Fabricators . | . . . Repair Stations . | . . . Recycling Units . | . . . Scanalyzers . | . . . Garrison Access . | . . . Data Cores Recovered . | . . . Used . | . . . Hacking Detections 5 | . 5 . Full Trace Events 3 | . 3 . Feedback Events . | . . . Feedback Blocked . | . . . Robot Schematics Acquired . | . . . Robots Built . | . . . Authchips . | . . . Time . | . . . Total Robot Build Rating . | . . . Part Schematics Acquired . | . . . Parts Built . | . . . Authchips . | . . . Time . | . . . Total Part Build Rating . | . . . Parts Repaired . | . . . Time . | . . . Parts Recycled . | . . . Recycled Matter 147 | . 147 . Retrieved Matter . | . . . Retrieved Components . | . . . Parts Scanalyzed . | . . . Part Schematics Acquired . | . . . Parts Damaged . | . . . Bothacking | -11 -10 -10 ------------ Run | Yrd Mat Sub Used RIF Installer . | . . . Robots Hacked . | . . . Non-combat . | . . . Combat . | . . . Robot Hacks Applied . | . . . Relay Couplers Released . | . . . Fabnet Peak Effective % . | . . . Robots Rewired . | . . . Allies Hacked . | . . . Hacks Repelled . | . . . Allies | -11 -10 -10 -------- Run | Yrd Mat Sub Total Allies . | . . . Largest Group . | . . . Highest-Rated Group . | . . . Highest-Rated Ally . | . . . Total Orders . | . . . Ally Attacks . | . . . Total Damage . | . . . Kills . | . . . Allies Corrupted . | . . . Allies Melted . | . . . Intel | -11 -10 -10 ------- Run | Yrd Mat Sub Robot Analysis Total . | . . . Derelict Logs Recovered 1 | . . 1 Drone Launches . | . . . Drone Recoveries . | . . . Exploration | -11 -10 -10 ------------- Run | Yrd Mat Sub Turns Passed 2071 | 68 1840 163 Spaces Moved 988 | 45 873 70 Core 5 | 5 . . Treads 18 | 14 4 . Legs 804 | . 734 70 Wheels 161 | 26 135 . Hover . | . . . Flight . | . . . Fastest Speed 50 | 50 80 190 Average Speed 157 | 103 154 221 Slowest Speed 260 | 160 190 260 Overloaded Moves . | . . . Propulsion Burnouts . | . . . Robots Hopped . | . . . Cave-ins Triggered . | . . . Exploration Rate (%) 28 | 4 76 5 Regions Visited 2 Branch Regions 1 Pre-discovered Areas . | . . . Known Exits Taken . | . . . Unknown Exits Taken 2 | 1 1 . Scrap Searched 4 | . . 4 Spaces Dug . | . . . Terrain Destroyed 2 | . 2 . Melee . | . . . Projectile . | . . . AOE 2 | . 2 . Terrain Rammed . | . . . Walls Destroyed . | . . . Machines Disabled . | . . . Actions | -11 -10 -10 --------- Run | Yrd Mat Sub Total 1393 | 60 1259 74 Wait 281 | . 280 1 Move 986 | 44 872 70 Hop . | . . . Pick Up 17 | 6 11 . Fast Attach 10 | 6 4 . Attach 4 | 1 3 . Detach 1 | . 1 . Swap 13 | 2 11 . Drop 12 | . 12 . Fire 62 | 1 58 3 Melee . | . . . Ram . | . . . Kick 4 | . 4 . Crush 3 | . 3 . Escape Stasis . | . . . Rewire . | . . . Trap . | . . . Miscellaneous . | . . . Route ------- -11/Scrapyard -10/Materials (discovered 4 exits: [*Mat x2] / [*Min] / [*Sub]) -10/Subcaves (discovered 1 exit: [*Mat]) History --------- Turn | Location | Event 9 | -11/Scrapyard | Discovered new exit (range 15) 69 | -11/Scrapyard | Entered Materials 314 | -10/Materials | Core integrity fell below 50% 341 | -10/Materials | Build established: Mutant 386 | -10/Materials | Destroyed 7 combat bots 387 | -10/Materials | Lost 4 parts (1p2n1w) 585 | -10/Materials | Discovered new exit (range 16) 688 | -10/Materials | Core integrity fell below 20% 822 | -10/Materials | Discovered new exit (range 10) 1034 | -10/Materials | Discovered new exit (range 9) 1897 | -10/Materials | Discovered new exit (range 7) 1909 | -10/Materials | Entered Subcaves 1944 | -10/Subcaves | Discovered new exit (range 6) 1983 | -10/Subcaves | Disturbed a concealed Subdweller 2072 | -10/Subcaves | Destroyed by 02-PV1(R) with Subdweller Machine Gun Last Messages --------------- 01974_ Found 65 Matter. 01980_ Searching scrap... 01980_ Found Sub. Monowheel. 01980_ Found 53 Matter. 01983_ LX-OXT(R) angrily emerges from the Twisted Machinery. 01986_ Aluminum Leg destroyed. 01990_ LX-OXT(R) destroyed. 01992_ Subatomizers dissect the Sub. Monowheel. 01993_ Acquired 8 matter. 01998_ Searching scrap... 01998_ Found Battle Cannon. 01998_ Found Sub. Beam Cannon. 01998_ Found 51 Matter. 02004_ Searching scrap... 02004_ Found Sub. Optics. 02004_ Found Sub. Machine Gun. 02004_ Found 55 Matter. 02006_ Subatomizers dissect the Sub. Monowheel. Map ----- +----------------------------------------------------+ | ?????????????????????????????????????????????????? | | ?????????????????????????????????????????????????? | | ?????????????????????????????????????????????????? | | ?????????????????????????????????????????????????? | | ?????????????????????????????????????????????????? | | ?????????????????????????????????????????????????? | | ?????????????????????????????????????????????????? | | ?????????????????????????????????????????????????? | | ?????????????????????????????????????????????????? | | ?????????????????????????????????????????????????? | | ?????????????????????????????????????????????????? | | ?????????????????????????????????????????????????? | | ?????????????????????????????????????????????????? | | ?????????????????????????????????????????????????? | | ?????????????????????????????????????????????????? | | ?????????????????????????????????????????????????? | | ????????????????#####????????????????????????????? | | ???????????????##]#!##???????????????????????????? | | ???????????????#%=]=%#???????????????????????????? | | ???????????????###%&##????????????????###????????? | | ????????????????#[&#######?????????### ##???????? | | ???????????????###!# # ###??????# #???????? | | ???????????????# "%" #?????? #???????? | | ???????????????# %=& #????## #????????? | | ???????????????# ## ###### #??????????? | | ???????????????# < #####@ ## ##?????????? | | ???????????????## ##??# #?????????? | | ???????????????## ####### #????????? | | ???????????????# # ### #???????? | | ???????????????# #????? | | ???????????????# ##### R ??? | | ???????????????# ### ##????# ??? | | ???????????????##### ##?????? # ??? | | ?????????????????## ##???????? ???? | | ?????????????????# #????????? ???? | | ?????????????????# #?????????? ????? | | ?????????????????# ##??????????# ## ????? | | ??????????????##### ##???????????? #??????? | | ?????????????## ## ##??????????????????????? | | ?????????????# ##???????????????????????? | | ?????????????### ##????????????????????????? | | ???????????????## ##?????????????????????????? | | ????????????????## #??????????????????????????? | | ?????????????????### #?????????????????????????? | | ???????????????????# #????????????????????????? | | ???????????????????? #????????????????????????? | | ???????????????????? ##????????????????????????? | | ???????????????????? ##?????????????????????????? | | ????????????????????###??????????????????????????? | | ?????????????????????????????????????????????????? | +----------------------------------------------------+ Best States ------------- Heat Dissipation 25 Energy Generation 10 Energy Capacity 250 Matter Stores 300 Matter Capacity 300 Sight Range 16 Robot Scan Range 14 Terrain Scan Density 10 Evasion (%) 55 Recoil Reduction 2 Item Schematics ----------------- None Robot Schematics ------------------ None Fabricated ------------ Nothing Alien Tech Used ----------------- None Achievements -------------- None Challenges ------------ None Game ------ Seed TechEtherialFlightbrick Manual? 0 Play Time 00:30:35 Cumulative 28.1 hours Start 2024.08.17 @ 12:51:16 End 2024.08.21 @ 23:00:18 Sessions 4 Manual Loads 0 Difficulty Rogue Special Mode None Game No. 11 Rogue 11 Adventurer 0 Explorer 0 Win Type - Total 0 Types 0/0/0/0/0/0/0/0/0 Lore% 19 Gallery% 16 Achievement% 13 Wizard Run 0 Options --------- Layout 2 ASCII 0 Keyboard 0 Movement Numpad Keybinds 0 Fullscreen 1 Font 32/SmallcapsGlow Map View 50x49 Zoom Use 0% Tactical HUD 1 Map Filters NONE Filters NONE Steam 1 RUN: cd4202ed-5518-4634-9e3a-2a0fdf75aa72